bitfinex-derivatives/quotes_SOLF0:USTF0_20250310
["timestamp","ask_amount","ask_price","bid_price","bid_amount"]
[1741581634783,7.8483,127.43,127.41,0.049437]
[1741581634988,0.0562,127.44,127.41,0.049437]
[1741581635478,0.0562,127.44,127.41,7.898637]
[1741581636192,7.904,127.44,127.41,7.898637]
[1741581636882,7.8483,127.43,127.41,0.049437]
[1741581637082,0.0562,127.44,127.41,0.049437]
[1741581637486,7.9039,127.44,127.41,7.898237]
[1741581637682,0.0562,127.44,127.41,7.898237]
[1741581637886,0.0562,127.44,127.41,0.049437]
[1741581638087,0.0562,127.44,127.42,7.8483]
[1741581638588,0.0562,127.44,127.41,0.049437]
[1741581638788,0.0562,127.44,127.43,7.848]
[1741581639387,13.97847995,127.49,127.44,7.847]
[1741581639585,313.8703,127.5,127.43,29.14]
[1741581639586,311.72,127.5,127.43,29.14]
[1741581640091,282.58,127.5,127.44,7.8471]
[1741581640478,282.58,127.5,127.46,0.05227537]
[1741581641887,7.8455,127.48,127.46,0.05227537]
[1741581642389,7.844,127.5,127.46,0.05227537]
[1741581642590,7.844,127.5,127.46,29.19227537]
[1741581642987,7.8444,127.49,127.46,29.19227537]
[1741581643292,13.97847995,127.51,127.46,29.19227537]
[1741581643493,7.8453,127.48,127.46,29.19227537]
[1741581644694,13.97847995,127.51,127.46,29.19227537]
[1741581644895,7.8456,127.47,127.46,29.19227537]
[1741581645095,13.97847995,127.51,127.46,0.05227537]
[1741581645392,7.8447,127.49,127.46,0.05227537]
[1741581645595,7.8447,127.49,127.46,7.89837537]
[1741581645795,43.11847995,127.53,127.46,0.05227537]
[1741581645997,7.8434,127.51,127.48,7.8449]
[1741581646195,13.97847995,127.53,127.47,31.1598]
[1741581646498,13.97847995,127.53,127.48,0.05791197]
[1741581647300,7.844,127.5,127.48,0.05791197]
[1741581647600,13.97847995,127.53,127.48,0.05791197]
[1741581648099,7.8443,127.49,127.48,0.05791197]
[1741581648694,13.97847995,127.53,127.48,0.05791197]
[1741581651009,7.8443,127.49,127.48,0.05791197]
[1741581654203,7.844,127.5,127.48,0.05791197]
[1741581656103,7.8443,127.49,127.48,0.05791197]
[1741581658699,8.93171381,127.5,127.48,0.05791197]
[1741581658897,8.93171381,127.52,127.48,0.05791197]
[1741581659204,2.0769,127.55,127.48,0.05791197]
[1741581659205,8.93171381,127.54,127.5,7.8433]
[1741581659403,8.93171381,127.54,127.49,38.05171381]
[1741581659602,8.93171381,127.54,127.5,0.05668896]
[1741581660300,7.8431,127.51,127.5,0.05668896]
[1741581660709,7.8428,127.52,127.5,0.05668896]
[1741581660904,13.95100137,127.54,127.5,0.05668896]
[1741581661807,7.8424,127.53,127.5,0.05668896]
[1741581662005,13.95100137,127.54,127.5,0.05668896]
[1741581662506,7.8426,127.52,127.5,7.90038896]
[1741581662808,7.8426,127.52,127.5,0.05668896]
[1741581663615,7.8431,127.51,127.5,0.05668896]
[1741581665613,13.95100137,127.54,127.5,0.05668896]
[1741581665999,7.8431,127.51,127.5,0.05668896]
[1741581669713,13.95100137,127.52,127.44,204.14]
[1741581669904,13.95100137,127.5,127.44,2.1514]
[1741581670103,43.07100137,127.5,127.44,2.1514]
[1741581670610,43.07100137,127.5,127.43,1.986]
[1741581670806,43.07100137,127.5,127.45,0.05488289]
[1741581671116,0.05650844,127.48,127.45,0.05488289]
[1741581671715,7.8461,127.47,127.45,0.05488289]
[1741581672415,0.05650844,127.48,127.45,29.15488289]
[1741581673113,0.05650844,127.48,127.46,7.8456]
[1741581673305,0.05650844,127.48,127.45,31.28738289]
[1741581673513,7.8426,127.52,127.49,7.8438]
[1741581673812,7.8426,127.52,127.45,45.23838426]
[1741581673813,74.59205222,127.55,127.47,13.95100137]
[1741581674015,74.59205222,127.55,127.48,29.12]
[1741581674220,7.8423,127.53,127.48,29.12]
[1741581674415,74.59205222,127.55,127.48,29.12]
[1741581674718,13.95100137,127.54,127.5,0.0551554]
[1741581675609,7.8431,127.51,127.5,0.0551554]
[1741581675813,29.12,127.52,127.5,0.0551554]
[1741581676116,29.1,127.54,127.5,0.0551554]
[1741581676510,7.8425,127.52,127.5,0.0551554]
[1741581676707,29.1,127.54,127.5,0.0551554]
[1741581677018,7.8431,127.51,127.5,0.0551554]
[1741581679710,7.842,127.53,127.5,7.8988554]
[1741581680711,7.8431,127.51,127.5,0.0551554]
[1741581683819,29.1,127.54,127.5,0.0551554]
[1741581684417,7.8431,127.51,127.5,0.0551554]
[1741581688322,16.77409654,127.51,127.5,0.0551554]
[1741581689628,8.93099654,127.55,127.5,7.8985554]
[1741581689926,8.93099654,127.55,127.5,0.0551554]
[1741581690330,327.49801032,127.56,127.5,0.0551554]
[1741581691428,7.8429,127.52,127.5,0.0551554]
[1741581692428,7.8431,127.51,127.5,0.0551554]
[1741581693327,29.07284964,127.58,127.5,17.92466572]
[1741581693533,29.07284964,127.58,127.52,13.94951032]
[1741581693722,29.07284964,127.58,127.53,0.05042056]
[1741581693925,10.84878805,127.58,127.54,29.1]
[1741581694127,10.84878805,127.58,127.54,43.04951032]
[1741581694629,10.84878805,127.58,127.54,29.1]
[1741581695031,10.84878805,127.58,127.54,36.9409]
[1741581695736,18.68758805,127.58,127.53,0.05042056]
[1741581696033,7.8388,127.58,127.53,0.05042056]
[1741581696435,36.9395,127.57,127.53,0.05042056]
[1741581696735,29.1,127.57,127.53,7.89212056]
[1741581697638,29.1,127.57,127.53,0.05042056]
[1741581697832,29.1,127.57,127.54,7.8412]
[1741581698237,36.9395,127.57,127.53,7.89192056]
[1741581698830,7.8401,127.56,127.53,0.05042056]
[1741581700446,13.94951032,127.55,127.53,0.05042056]
[1741581700834,13.94951032,127.61,127.53,0.05042056]
[1741581700835,7.8389,127.58,127.53,0.05042056]
[1741581701033,43.39515222,127.64,127.55,13.94951032]
[1741581701236,43.39515222,127.64,127.57,13.94951032]
[1741581701534,43.39515222,127.64,127.59,7.8378]
[1741581701730,10.84878805,127.61,127.59,29.34]
[1741581702240,10.84878805,127.61,127.59,37.1778]
[1741581704336,223.47034579,127.64,127.59,37.1778]
[1741581704337,7.8354,127.64,127.59,37.1778]
[1741581705435,13.94951032,127.65,127.59,37.1778]
[1741581705640,7.8358,127.63,127.59,37.1778]
[1741581705942,7.8358,127.63,127.61,0.05657521]
[1741581706336,7.8363,127.62,127.61,0.05657521]
[1741581706537,13.94951032,127.65,127.61,0.05657521]
[1741581706743,7.8361,127.63,127.61,0.05657521]
[1741581707143,13.94951032,127.65,127.61,0.05657521]
[1741581707437,31.3498,127.66,127.52,5.974]
[1741581707438,13.94951032,127.61,127.52,5.974]
[1741581707744,29.26,127.6,127.53,29.24]
[1741581708545,29.26,127.6,127.55,0.05312789]
[1741581708546,0.05675573,127.58,127.55,0.05312789]
[1741581709135,7.8394,127.57,127.55,0.05312789]
[1741581709849,7.84,127.56,127.55,0.05312789]
[1741581710346,43.18951032,127.57,127.5,37.0834]
[1741581710535,43.18951032,127.57,127.5,7.8434]
[1741581710736,43.18951032,127.57,127.49,29.24]
[1741581710940,43.18951032,127.57,127.49,43.18951032]
[1741581711243,7.841,127.55,127.49,43.18951032]
[1741581711437,0.05895805,127.54,127.52,0.05118829]
[1741581711746,7.90065805,127.54,127.52,0.05118829]
[1741581712446,0.05895805,127.54,127.52,0.05118829]
[1741581712641,7.8419,127.53,127.52,0.05118829]
[1741581713243,0.05895805,127.54,127.52,0.05118829]
[1741581713442,7.90045805,127.54,127.52,0.05118829]
[1741581713846,0.05895805,127.54,127.52,0.05118829]
[1741581714041,7.8419,127.53,127.52,0.05118829]
[1741581715843,29.25895805,127.54,127.46,6.1897]
[1741581716043,13.94951032,127.53,127.46,33.3201]
[1741581716348,13.94951032,127.53,127.46,41.1658]
[1741581716945,7.8443,127.5,127.48,0.05669712]
[1741581718755,7.8443,127.49,127.48,0.05669712]
[1741581719052,0.05524485,127.51,127.48,0.05669712]
[1741581719553,7.844,127.5,127.48,0.05669712]
[1741581720957,0.05524485,127.51,127.48,0.05669712]
[1741581721148,7.8443,127.49,127.48,0.05669712]
[1741581723142,29.23524485,127.51,127.48,0.05669712]
[1741581723352,7.89854485,127.51,127.48,7.90139712]
[1741581723754,7.8438,127.5,127.48,0.05669712]
[1741581724549,0.05524485,127.51,127.48,0.05669712]
[1741581725057,7.8443,127.49,127.48,0.05669712]
[1741581730463,7.8478,127.44,127.41,36.949]
[1741581731263,13.94951032,127.49,127.43,7.8479]
[1741581731264,7.8466,127.46,127.43,7.8479]
[1741581731652,7.90534087,127.46,127.43,7.90123069]
[1741581732259,0.05874087,127.46,127.43,0.05333069]
[1741581732458,7.8474,127.44,127.43,0.05333069]
[1741581732958,7.847,127.45,127.43,0.05333069]
[1741581733764,7.90524087,127.46,127.43,7.90123069]
[1741581733964,0.05874087,127.46,127.43,0.05333069]
[1741581734357,7.90514087,127.46,127.43,7.90103069]
[1741581734560,0.05874087,127.46,127.43,0.05333069]
[1741581735561,7.90554087,127.46,127.43,7.90133069]
[1741581735756,0.05874087,127.46,127.43,7.90133069]
[1741581735957,0.05874087,127.46,127.43,0.05333069]
[1741581736452,7.90524087,127.46,127.43,7.90123069]
[1741581736662,0.05874087,127.46,127.43,0.05333069]
[1741581737760,7.8474,127.44,127.43,0.05333069]
[1741581741862,29.15874087,127.46,127.43,0.05333069]
[1741581742166,0.05874087,127.46,127.43,7.90133069]
[1741581742462,0.05874087,127.46,127.43,0.05333069]
[1741581742662,0.05874087,127.46,127.45,7.8468]
[1741581742866,0.05874087,127.46,127.44,29.12]
[1741581742867,29.12,127.51,127.44,33.1335]
[1741581743274,7.8443,127.5,127.46,7.8458]
[1741581743474,7.8443,127.5,127.44,33.1335]
[1741581743663,3.9166,127.54,127.49,7.8441]
[1741581743970,0.05638783,127.53,127.5,0.05310441]
[1741581747172,7.8431,127.51,127.5,0.05310441]
[1741581751478,7.8431,127.51,127.5,4.41e-06]
[1741581751663,36.9431,127.51,127.5,4.41e-06]
[1741581752467,50.89261032,127.51,127.5,4.41e-06]
[1741581754277,36.9431,127.51,127.5,4.41e-06]
[1741581754463,7.8428,127.52,127.5,4.41e-06]
[1741581757373,0.05638783,127.53,127.5,4.41e-06]
[1741581757678,0.05638783,127.53,127.51,7.8431]
[1741581758280,0.05638783,127.53,127.5,7.84350441]
[1741581758475,0.05638783,127.53,127.5,4.41e-06]
[1741581760988,7.8428,127.52,127.5,4.41e-06]
[1741581761181,0.05638783,127.53,127.5,4.41e-06]
[1741581761881,7.89878783,127.53,127.5,7.84340441]
[1741581762874,0.05638783,127.53,127.5,4.41e-06]
[1741581763971,7.8431,127.51,127.5,4.41e-06]
[1741581764975,7.8428,127.52,127.5,4.41e-06]
[1741581765175,0.05638783,127.53,127.5,7.84370441]
[1741581765877,7.89858783,127.53,127.5,7.84370441]
[1741581766483,7.8425,127.52,127.5,7.84370441]
[1741581766984,7.8431,127.51,127.5,4.41e-06]
[1741581775293,7.8428,127.52,127.5,4.41e-06]
[1741581777586,0.05638783,127.53,127.5,4.41e-06]
[1741581778785,7.8431,127.51,127.5,4.41e-06]
[1741581779488,7.89858783,127.53,127.5,4.41e-06]
[1741581780387,0.05638783,127.53,127.5,8.92549571]
[1741581780992,7.89858783,127.53,127.5,16.76889571]
[1741581781790,43.39515222,127.6,127.52,8.9254913]
[1741581782085,43.39515222,127.6,127.57,8.9254913]
[1741581782887,43.39515222,127.6,127.58,7.8384]
[1741581783089,43.45470601,127.6,127.58,7.8384]
[1741581783298,10.84878805,127.59,127.58,7.8384]
[1741581783791,51.59127264,127.6,127.59,7.8382]
[1741581783993,51.59127264,127.6,127.59,46.2836913]
[1741581784391,51.59127264,127.6,127.59,37.3582]
[1741581786091,51.59127264,127.6,127.59,55.20255051]
[1741581786398,130.23892323,127.61,127.6,7.8376]
[1741581786897,0.05346655,127.61,127.6,7.8376]
[1741581787699,43.40435051,127.69,127.63,7.8357]
[1741581787700,29.48,127.69,127.63,7.8357]
[1741581787899,47.46965051,127.71,127.63,37.2957]
[1741581788196,7.8316,127.7,127.63,37.2957]
[1741581788898,0.04271999,127.68,127.65,0.05411527]
[1741581790601,0.04271999,127.68,127.66,29.42]
[1741581791601,0.04271999,127.68,127.67,7.8333]
[1741581794002,0.04271999,127.68,127.66,29.42]
[1741581794202,0.04271999,127.68,127.66,37.2535]
[1741581794599,0.04271999,127.68,127.66,29.42]
[1741581795192,0.04271999,127.68,127.65,0.05411527]
[1741581795397,0.04271999,127.68,127.65,29.41411527]
[1741581797902,0.04271999,127.68,127.65,37.24861527]
[1741581798899,0.04271999,127.68,127.66,7.8339]
[1741581799091,0.04271999,127.68,127.65,29.41411527]
[1741581799499,0.04271999,127.68,127.67,7.8333]
[1741581799700,0.04271999,127.68,127.65,29.41411527]
[1741581799907,0.04271999,127.68,127.66,7.8336]
[1741581800302,0.04271999,127.68,127.65,29.41411527]
[1741581801506,7.8333,127.67,127.65,29.41411527]
[1741581802009,7.87561999,127.68,127.65,29.41411527]
[1741581803214,0.04271999,127.68,127.65,0.05411527]
[1741581803709,2.05581999,127.68,127.65,0.05411527]
[1741581804305,2.05581999,127.68,127.61,29.28]
[1741581804516,43.20435051,127.67,127.59,31.3267]
[1741581804903,7.8368,127.62,127.59,31.3267]
[1741581805409,7.8361,127.63,127.59,39.1645]
[1741581805608,0.05379484,127.62,127.59,45.31057795]
[1741581805910,0.05379484,127.62,127.61,7.837]
[1741581806714,0.05379484,127.62,127.61,21.76135051]
[1741581809311,9.484e-05,127.62,127.61,21.76135051]
[1741581809510,2.0537,127.7,127.61,31.76870102]
[1741581809814,2.0537,127.7,127.65,13.92435051]
[1741581810114,2.0537,127.7,127.66,37.0736]
[1741581810513,7.8321,127.69,127.66,37.0736]
[1741581810713,7.87514042,127.69,127.67,0.05609803]
[1741581811117,0.04304042,127.69,127.67,0.05609803]
[1741581811816,7.8327,127.68,127.67,0.05609803]
[1741581812018,0.04304042,127.69,127.67,0.05609803]
[1741581813519,0.04304042,127.69,127.59,452.5267]
[1741581813520,13.96739093,127.69,127.59,495.67105051]
[1741581813723,13.96739093,127.69,127.59,237.19105051]
[1741581814023,7.835,127.65,127.59,237.19105051]
[1741581814820,0.05955331,127.63,127.61,0.05512758]
[1741581815522,0.05955331,127.63,127.62,7.8359]
[1741581815925,0.05955331,127.63,127.61,7.89182758]
[1741581817019,0.05955331,127.63,127.62,7.8363]
[1741581819319,0.05955331,127.63,127.62,37.0163]
[1741581819924,29.16,127.68,127.62,29.18]
[1741581821219,0.03958513,127.66,127.64,7.88835796]
[1741581821424,0.03958513,127.66,127.64,0.05345796]
[1741581822430,7.8345,127.65,127.64,0.05345796]
[1741581823022,0.03958513,127.66,127.59,237.11105051]
[1741581823331,7.8357,127.63,127.59,52.94895051]
[1741581823828,7.8368,127.62,127.59,2.0467]
[1741581824026,45.14315051,127.65,127.57,75.23930446]
[1741581824432,0.05527203,127.62,127.59,0.0572759]
[1741581824834,7.8373,127.61,127.59,0.0572759]
[1741581825134,0.05527203,127.62,127.59,0.0572759]
[1741581825323,7.8376,127.6,127.59,0.0572759]
[1741581827529,7.8392,127.58,127.56,1.9927]
[1741581827731,29.08,127.62,127.56,1.9927]
[1741581827935,7.8381,127.6,127.56,9.8327]
[1741581828129,29.08,127.62,127.56,1.9927]
[1741581828330,31.1587,127.64,127.57,13.92435051]
[1741581828538,0.05522521,127.6,127.58,0.0545097]
[1741581829133,0.05522521,127.6,127.59,7.8382]
[1741581829337,0.05522521,127.6,127.58,0.0545097]
[1741581829834,0.05522521,127.6,127.59,7.8382]
[1741581831135,0.05522521,127.6,127.58,0.0545097]
[1741581833341,0.05522521,127.6,127.55,7.8403]
[1741581834335,13.97957572,127.6,127.52,1.9908]
[1741581834531,2.0733,127.59,127.52,1.9908]
[1741581834738,7.8388,127.58,127.56,0.05324554]
[1741581834941,0.05734269,127.57,127.56,0.05324554]
[1741581836642,0.05734269,127.57,127.56,7.89324554]
[1741581838038,0.05734269,127.57,127.56,0.05324554]
[1741581838839,0.05734269,127.57,127.56,7.89324554]
[1741581841446,0.05734269,127.57,127.56,0.05324554]
[1741581843448,0.05734269,127.57,127.56,7.89324554]
[1741581845950,0.05734269,127.57,127.56,0.05324554]
[1741581847160,7.89674269,127.57,127.56,0.05324554]
[1741581849055,0.05734269,127.57,127.56,0.05324554]
[1741581849950,0.05734269,127.57,127.56,7.89324554]
[1741581851755,4.269e-05,127.57,127.56,7.89324554]
[1741581853658,1.3640907,127.69,127.56,7.89324554]
[1741581853659,7.8324,127.69,127.56,234.87348648]
[1741581853862,7.8324,127.69,127.63,13.92435051]
[1741581854055,4.0402,127.7,127.63,13.92435051]
[1741581854258,4.0402,127.7,127.65,7.8343]
[1741581854461,33.5002,127.7,127.65,7.8343]
[1741581854658,0.0495948,127.69,127.66,0.05143307]
[1741581856753,0.0495948,127.69,127.66,7.88493307]
[1741581857159,0.0495948,127.69,127.66,0.05143307]
[1741581857359,0.0495948,127.69,127.66,7.88503307]
[1741581858060,0.0495948,127.69,127.66,0.05143307]
[1741581861562,7.8327,127.68,127.66,0.05143307]
[1741581861960,7.8818948,127.69,127.66,0.05143307]
[1741581862362,0.0495948,127.69,127.64,7.8349]
[1741581863163,0.0495948,127.69,127.62,29.46]
[1741581863370,0.0495948,127.69,127.61,13.92435051]
[1741581863564,33.5002,127.7,127.64,0.05104742]
[1741581863866,0.05046294,127.66,127.64,0.05104742]
[1741581864469,7.88466294,127.66,127.64,0.05104742]
[1741581864673,0.05046294,127.66,127.64,0.05104742]
[1741581865061,0.05046294,127.66,127.65,7.8345]
[1741581865265,0.05046294,127.66,127.64,0.05104742]
[1741581865675,0.05046294,127.66,127.64,7.88584742]
[1741581867675,7.8345,127.65,127.64,0.05104742]
[1741581875276,29.21046294,127.66,127.6,1.9713]
[1741581875484,7.836,127.63,127.6,9.8086]
[1741581876481,7.89294229,127.63,127.6,9.86339405]
[1741581877583,0.05694229,127.63,127.6,9.86339405]
[1741581878182,0.05694229,127.63,127.6,2.02609405]
[1741581878382,0.05694229,127.63,127.61,7.8366]
[1741581882183,0.05694229,127.63,127.6,9.86329405]
[1741581882382,0.05694229,127.63,127.6,10.93692968]
[1741581883388,0.05694229,127.63,127.61,7.8369]
[1741581888595,0.05694229,127.63,127.6,10.93692968]
[1741581888991,0.05694229,127.63,127.62,8.91083563]
[1741581889296,0.05694229,127.63,127.62,16.74713563]
[1741581892292,0.05694229,127.63,127.61,7.8367]
[1741581892502,0.05694229,127.63,127.6,2.02609405]
[1741581893291,7.89314229,127.63,127.6,2.02609405]
[1741581893496,0.05694229,127.63,127.6,2.02609405]
[1741581893996,0.05694229,127.63,127.61,7.8369]
[1741581895196,0.05694229,127.63,127.62,7.8363]
[1741581903401,10.98243563,127.7,127.61,37.97083563]
[1741581903603,29.06,127.69,127.66,7.8338]
[1741581904002,10.98243563,127.7,127.66,7.8338]
[1741581904399,10.98243563,127.7,127.62,1.9749]
[1741581904595,0.05953257,127.69,127.67,0.05350952]
[1741581904997,7.8332,127.68,127.67,0.05350952]
[1741581905496,16.74403563,127.68,127.67,0.05350952]
[1741581909103,7.8344,127.66,127.62,16.74693563]
[1741581909603,7.8346,127.65,127.62,16.74693563]
[1741581909802,7.8346,127.65,127.62,16.74713563]
[1741581910201,7.88825927,127.65,127.62,16.80543222]
[1741581910810,0.05365927,127.65,127.62,0.05829659]
[1741581911108,8.91083563,127.64,127.62,0.05829659]
[1741581911309,29.11365927,127.65,127.62,7.89449659]
[1741581912215,29.11365927,127.65,127.62,0.05829659]
[1741581912416,36.94855927,127.65,127.62,0.05829659]
[1741581912912,36.94855927,127.65,127.62,7.89459659]
[1741581913613,36.94855927,127.65,127.62,0.05829659]
[1741581914312,29.11365927,127.65,127.62,16.80543222]
[1741581914515,0.05365927,127.65,127.62,8.96913222]
[1741581914809,0.05365927,127.65,127.63,7.8354]
[1741581915405,0.05365927,127.65,127.62,16.80523222]
[1741581915606,0.05365927,127.65,127.62,8.96913222]
[1741581915906,7.8354,127.64,127.62,0.05829659]
[1741581916103,0.05365927,127.65,127.62,0.05829659]
[1741581916506,7.8357,127.63,127.62,0.05829659]
[1741581917809,0.05365927,127.65,127.62,0.05829659]
[1741581918211,0.05365927,127.65,127.62,7.89409659]
[1741581918710,0.05365927,127.65,127.62,0.05829659]
[1741581919312,7.88865927,127.65,127.62,0.05829659]
[1741581919817,7.88815927,127.65,127.62,7.89419659]
[1741581920012,0.05365927,127.65,127.62,0.05829659]
[1741581920814,7.8353,127.64,127.62,0.05829659]
[1741581921114,0.05365927,127.65,127.62,0.05829659]
[1741581921812,7.8356,127.64,127.62,0.05829659]
[1741581922317,0.05365927,127.65,127.62,0.05829659]
[1741581922518,7.8356,127.64,127.62,0.05829659]
[1741581922719,0.05365927,127.65,127.62,0.05829659]
[1741581922919,2.04415927,127.65,127.62,0.05829659]
[1741581923508,0.05365927,127.65,127.62,0.05829659]
[1741581923711,0.05365927,127.65,127.62,8.96913222]
[1741581924619,0.05365927,127.65,127.62,16.80513222]
[1741581924814,7.88825927,127.65,127.62,16.80513222]
[1741581925215,0.05365927,127.65,127.62,0.05829659]
[1741581925420,8.9644949,127.65,127.62,0.05829659]
[1741581926119,7.8351,127.64,127.62,0.05829659]
[1741581926323,8.9644949,127.65,127.62,0.05829659]
[1741581927122,29.06,127.64,127.62,0.05829659]
[1741581927317,8.91083563,127.63,127.58,41.10578958]
[1741581927522,8.91083563,127.63,127.58,32.19495395]
[1741581927714,7.8376,127.6,127.58,32.19495395]
[1741581928418,8.91083563,127.63,127.58,41.10578958]
[1741581928419,7.8367,127.62,127.58,41.10578958]
[1741581928620,0.0539794,127.6,127.58,8.96942177]
[1741581929017,0.0539794,127.6,127.59,7.8382]
[1741581929424,0.0539794,127.6,127.58,16.80802177]
[1741581929716,0.0539794,127.6,127.58,8.96942177]
[1741581930423,0.0539794,127.6,127.59,7.8382]
[1741581931418,0.0539794,127.6,127.58,8.96942177]
[1741581931619,0.0539794,127.6,127.58,0.05858614]
[1741581931925,7.8919794,127.6,127.58,0.05858614]
[1741581932122,0.0539794,127.6,127.58,0.05858614]
[1741581932525,0.0539794,127.6,127.59,7.8382]
[1741581933020,0.0539794,127.6,127.58,8.96942177]
[1741581933328,0.0539794,127.6,127.58,16.80802177]
[1741581933529,0.0539794,127.6,127.58,8.96942177]
[1741581933725,0.0539794,127.6,127.58,16.80792177]
[1741581934025,0.0539794,127.6,127.58,8.96942177]
[1741581936027,0.0539794,127.6,127.58,16.80822177]
[1741581937421,0.0539794,127.6,127.58,8.96942177]
[1741581938126,7.8382,127.59,127.58,0.05858614]
[1741581939522,7.8918794,127.6,127.58,0.05858614]
[1741581939719,0.0539794,127.6,127.58,8.96942177]
[1741581941425,0.0539794,127.6,127.59,7.8382]
[1741581942835,0.0539794,127.6,127.58,8.96942177]
[1741581942836,8.91083563,127.68,127.58,10.97852177]
[1741581943124,29.06,127.69,127.65,8.91083563]
[1741581943327,8.91083563,127.7,127.65,8.91083563]
[1741581943519,7.8324,127.69,127.65,16.74523563]
[1741581943721,37.97083563,127.7,127.65,8.91083563]
[1741581943922,37.97083563,127.7,127.66,0.05147678]
[1741581943923,0.06008899,127.68,127.66,0.05147678]
[1741581946425,7.8333,127.67,127.66,0.05147678]
[1741581946622,8.97092462,127.68,127.66,0.05147678]
[1741581947429,16.80372462,127.68,127.66,0.05147678]
[1741581947729,8.97092462,127.68,127.66,0.05147678]
[1741581948329,7.8333,127.67,127.66,0.05147678]
[1741581948826,8.97092462,127.68,127.63,29.06]
[1741581949026,7.8344,127.66,127.62,16.74713563]
[1741581949229,8.91083563,127.68,127.62,8.91083563]
[1741581949426,7.8351,127.65,127.62,8.91083563]
[1741581949623,8.91083563,127.66,127.6,37.97083563]
[1741581950029,0.0515666,127.64,127.62,0.05511106]
[1741581950630,7.8866666,127.64,127.62,0.05511106]
[1741581950931,0.0515666,127.64,127.62,7.89141106]
[1741581951324,0.0515666,127.64,127.62,8.96594669]
[1741581952225,0.0515666,127.64,127.63,7.8357]
[1741581952432,0.0515666,127.64,127.63,36.8957]
[1741581953738,0.0515666,127.64,127.62,8.96594669]
[1741581953938,0.0515666,127.64,127.62,16.80194669]
[1741581954538,0.0515666,127.64,127.62,8.96594669]
[1741581954934,7.8866666,127.64,127.62,0.05511106]
[1741581955539,7.8357,127.63,127.62,0.05511106]
[1741581957652,16.79770223,127.64,127.62,0.05511106]
[1741581957851,8.96240223,127.64,127.62,0.05511106]
[1741581959552,0.0515666,127.64,127.62,0.05511106]
[1741581959852,0.0515666,127.64,127.62,8.96594669]
[1741581960358,0.0515666,127.64,127.63,7.8357]
[1741581965656,0.0515666,127.64,127.63,36.8757]
[1741581968746,0.0515666,127.64,127.63,29.04]
[1741581969155,0.0515666,127.64,127.62,0.05511106]
[1741581969752,0.0515666,127.64,127.63,7.8357]
[1741581969962,0.0515666,127.64,127.63,9.8835]
[1741581971053,2.1352,127.7,127.63,2.0478]
[1741581971249,1.9801,127.71,127.64,42.95772959]
[1741581971958,1.9801,127.71,127.67,7.8328]
[1741581972352,1.9801,127.71,127.64,42.95772959]
[1741581972353,0.05550128,127.7,127.68,0.05799562]
[1741581973659,13.97323087,127.7,127.64,29.04]
[1741581974260,7.8339,127.66,127.64,29.04]
[1741581974464,29.04,127.69,127.63,2.0478]
[1741581974656,7.8323,127.69,127.64,7.8347]
[1741581974857,0.05207329,127.67,127.65,0.04962074]
[1741581976963,7.88537329,127.67,127.65,0.04962074]
[1741581979065,0.05207329,127.67,127.65,0.04962074]
[1741581979469,7.8339,127.66,127.65,0.04962074]
[1741581981069,7.88557329,127.67,127.65,0.04962074]
[1741581982076,0.05207329,127.67,127.65,0.04962074]
[1741581982264,0.05207329,127.67,127.65,8.9529377]
[1741581982570,0.05207329,127.67,127.65,16.7870377]
[1741581983474,0.05207329,127.67,127.65,37.9929377]
[1741581983669,0.05207329,127.67,127.66,7.8339]
[1741581984370,2.1274,127.74,127.65,37.9929377]
[1741581984565,2.1274,127.74,127.69,8.90331696]
[1741581984771,2.1274,127.74,127.71,7.8308]
[1741581984970,2.1274,127.74,127.69,37.94331696]
[1741581985373,0.05144304,127.73,127.7,0.05846216]
[1741581985670,8.95476,127.73,127.7,0.05846216]
[1741581986774,0.05144304,127.73,127.7,0.05846216]
[1741581987372,8.90331696,127.72,127.7,0.05846216]
[1741581988174,7.8308,127.71,127.7,0.05846216]
[1741581988969,8.90331696,127.72,127.7,0.05846216]
[1741581988970,16.73381696,127.72,127.7,0.05846216]
[1741581989167,0.05144304,127.73,127.7,0.05846216]
[1741581989578,7.8308,127.71,127.7,0.05846216]
[1741581990178,16.73381696,127.72,127.7,0.05846216]
[1741581990480,8.90331696,127.72,127.7,0.05846216]
[1741581990874,7.8308,127.71,127.7,0.05846216]
[1741581992789,8.90331696,127.72,127.66,29.02]
[1741581992790,7.8331,127.68,127.66,29.02]
[1741581992977,7.8331,127.68,127.65,8.90331696]
[1741581993286,7.8323,127.69,127.65,16.73751696]
[1741581993578,2.0993,127.71,127.65,8.90331696]
[1741581993788,2.0993,127.71,127.67,8.90331696]
[1741581993978,0.05195912,127.69,127.68,7.8321]